fUST/lending_fUST_20250719
["ID","MTS","AMOUNT","RATE_DAILY","PERIOD"]
[373216302,1752909047702,-460.0,0.00017429,2]
[373216304,1752909047711,-460.0,0.00017429,2]
[373216306,1752909047720,-460.0,0.00017429,2]
[373216308,1752909047730,-389.95220006,0.00017429,2]
[373216310,1752909047739,-460.0,0.00017429,2]
[373216313,1752909047749,-460.0,0.00017429,2]
[373216315,1752909047760,-460.0,0.00017429,2]
[373216317,1752909047769,-460.0,0.00017429,2]
[373216319,1752909047778,-478.65322308,0.00017429,2]
[373216321,1752909047787,-460.0,0.00017429,2]
[373216323,1752909047803,-460.0,0.00017429,2]
[373216325,1752909047812,-473.36,0.00017429,2]
[373216327,1752909047821,-1137.59,0.00017429,2]
[373216329,1752909047830,-462.34,0.00017429,2]
[373216331,1752909047842,-460.0,0.00017429,2]
[373216332,1752909047852,-460.0,0.00017429,2]
[373216334,1752909047864,-460.0,0.00017429,2]
[373216336,1752909047873,-653.46,0.00017429,2]
[373216338,1752909047883,-927.65,0.00017429,2]
[373216340,1752909047892,-460.0,0.00017429,2]
[373216342,1752909047902,-460.0,0.00017429,2]
[373216344,1752909047911,-460.0,0.00017429,2]
[373216346,1752909047921,-460.0,0.00017429,2]
[373216348,1752909047930,-460.0,0.00017429,2]
[373216350,1752909047940,-460.0,0.00017429,2]
[373216352,1752909047950,-460.0,0.00017429,2]
[373216354,1752909047960,-460.0,0.00017429,2]
[373216356,1752909047969,-460.0,0.00017429,2]
[373216358,1752909047979,-460.0,0.00017429,2]
[373216361,1752909047989,-460.0,0.0001743,2]
[373216362,1752909047999,-460.0,0.0001743,2]
[373216364,1752909048008,-460.0,0.0001743,2]
[373216366,1752909048017,-460.0,0.0001743,2]
[373216368,1752909048026,-371.66227126,0.0001743,2]
[373216370,1752909048036,-460.0,0.0001743,2]
[373216372,1752909048046,-415.82606844,0.0001743,2]
[373216374,1752909048056,-460.0,0.0001743,2]
[373216376,1752909048065,-460.0,0.0001743,2]
[373216379,1752909048075,-460.0,0.0001743,2]
[373216381,1752909048084,-460.0,0.0001743,2]
[373216382,1752909048094,-650.9,0.0001743,2]
[373216384,1752909048104,-460.06,0.0001743,2]
[373216387,1752909048116,-460.0,0.00017431,2]
[373216389,1752909048126,-460.0,0.00017431,2]
[373216390,1752909048135,-1989.54,0.00017431,2]
[373216392,1752909048145,-654.7,0.00017431,2]
[373216394,1752909048155,-473.78928648,0.00017432,2]
[373216396,1752909048164,-460.0,0.00017432,2]
[373216399,1752909048174,-460.0,0.00017432,2]
[373216400,1752909048183,-460.0,0.00017432,2]
[373216402,1752909048192,-460.0,0.00017432,2]
[373216404,1752909048201,-460.0,0.00017432,2]
[373216406,1752909048210,-460.0,0.00017432,2]
[373216408,1752909048219,-460.0,0.00017432,2]
[373216410,1752909048229,-460.0,0.00017432,2]
[373216412,1752909048238,-460.0,0.00017432,2]
[373216414,1752909048248,-460.0,0.00017432,2]
[373216416,1752909048257,-460.0,0.00017432,2]
[373216418,1752909048267,-263.18766542,0.00017432,2]
[373216420,1752909048276,-503.28961543,0.00017432,2]
[373216422,1752909048285,-460.0,0.00017432,2]
[373216424,1752909048294,-460.0,0.00017432,2]
[373216426,1752909048303,-460.0,0.00017432,2]
[373216428,1752909048313,-460.0,0.00017432,2]
[373216430,1752909048322,-460.0,0.00017432,2]
[373216432,1752909048332,-460.0,0.00017432,2]
[373216447,1752909048462,-345.31733418,0.00017432,2]
[373216449,1752909048472,-460.0,0.00017432,2]
[373216451,1752909048481,-460.0,0.00017432,2]
[373216453,1752909048492,-460.0,0.00017432,2]
[373216455,1752909048501,-170.18971475,0.00017473,2]
[373216457,1752909048511,-150.44874067,0.00017473,2]
[373216459,1752909048520,-500.0,0.00017473,2]
[373216461,1752909048530,-460.0,0.00017534,2]
[373216463,1752909048540,-460.0,0.00017534,2]
[373216465,1752909048550,-460.0,0.00017534,2]
[373216467,1752909048560,-1181.12,0.00017534,2]
[373216469,1752909048570,-620.48,0.00017534,2]
[373216471,1752909048580,-460.0,0.00017534,2]
[373216473,1752909048590,-887.11,0.00017534,2]
[373216475,1752909048599,-392.15755678,0.000177,2]
[373216477,1752909048609,-460.0,0.000177,2]
[373216479,1752909048618,-236.70578808,0.000177,2]
[373216481,1752909048627,-460.0,0.000177,2]
[373216483,1752909048637,-460.0,0.000177,2]
[373216485,1752909048646,-1478.11,0.000177,2]
[373216487,1752909048656,-178.97926082,0.00017701,2]
[373216489,1752909048665,-460.0,0.00017701,2]
[373216491,1752909048675,-2003.51,0.00017701,2]
[373216493,1752909048684,-522.16,0.00017701,2]
[373216495,1752909048694,-3782.99,0.00017701,2]
[373216497,1752909048703,-460.0,0.00017701,2]
[373216499,1752909048713,-1586.99,0.00017701,2]
[373216501,1752909048722,-460.0,0.00017701,2]
[373216503,1752909048731,-1246.53,0.00017701,2]
[373216505,1752909048740,-460.0,0.00017701,2]
[373216507,1752909048750,-460.0,0.00017701,2]
[373216509,1752909048759,-1792.22,0.00017701,2]
[373216511,1752909048769,-460.0,0.00017701,2]
[373216513,1752909048778,-488.5,0.00017701,2]
[373216514,1752909048787,-460.0,0.00017701,2]
[373216515,1752909048799,-460.0,0.00017702,2]
[373216516,1752909048809,-460.0,0.00017702,2]
[373216517,1752909048818,-254.8889882,0.00017702,2]
[373216518,1752909048828,-460.0,0.00017702,2]
[373216519,1752909048837,-460.0,0.00017702,2]
[373216520,1752909048847,-460.0,0.00017702,2]
[373216521,1752909048856,-460.0,0.00017702,2]
[373216522,1752909048866,-460.0,0.00017702,2]
[373216523,1752909048875,-284.22674258,0.00017702,2]
[373216524,1752909048884,-460.0,0.00017702,2]
[373216525,1752909048894,-389.04598075,0.00017702,2]
[373216526,1752909048903,-460.0,0.00017702,2]
[373216527,1752909048912,-460.0,0.00017702,2]
[373216528,1752909048921,-460.0,0.00017702,2]
[373216530,1752909048929,-460.0,0.00017702,2]
[373216532,1752909048937,-460.0,0.00017702,2]
[373216534,1752909048946,-460.0,0.00017702,2]
[373216536,1752909048954,-460.0,0.00017702,2]
[373216538,1752909048962,-460.0,0.00017702,2]
[373216540,1752909048970,-460.0,0.00017702,2]
[373216543,1752909048979,-460.0,0.00017702,2]
[373216545,1752909048988,-209.09007417,0.00017702,2]
[373216547,1752909048996,-460.0,0.00017702,2]
[373216549,1752909049004,-460.0,0.00017702,2]
[373216551,1752909049012,-460.0,0.00017702,2]
[373216553,1752909049020,-460.0,0.00017702,2]
[373216555,1752909049029,-460.0,0.00017702,2]
[373216557,1752909049037,-562.14,0.00017702,2]
[373216559,1752909049046,-460.0,0.00017702,2]
[373216561,1752909049056,-463.66762211,0.00017702,2]
[373216563,1752909049063,-460.0,0.00017703,2]
[373216565,1752909049072,-177.85274433,0.00017703,2]
[373216567,1752909049079,-460.0,0.00017703,2]
[373216569,1752909049087,-460.0,0.00017703,2]
[373216571,1752909049094,-460.0,0.00017703,2]
[373216572,1752909049101,-460.0,0.00017703,2]
[373216575,1752909049110,-460.0,0.00017703,2]
[373216577,1752909049119,-460.0,0.00017703,2]
[373216579,1752909049127,-460.0,0.00017703,2]
[373216581,1752909049135,-460.0,0.00017703,2]
[373216583,1752909049143,-460.0,0.00017703,2]
[373216585,1752909049151,-460.0,0.00017703,2]
[373216587,1752909049158,-460.0,0.00017703,2]
[373216589,1752909049166,-460.0,0.00017703,2]
[373216590,1752909049173,-460.0,0.00017703,2]
[373216592,1752909049181,-460.0,0.00017703,2]
[373216594,1752909049189,-473.36,0.00017703,2]
[373216596,1752909049197,-1137.59,0.00017703,2]
[373216598,1752909049206,-460.0,0.00017703,2]
[373216600,1752909049213,-460.0,0.00017703,2]
[373216602,1752909049220,-460.0,0.00017703,2]
[373216604,1752909049228,-653.46,0.00017703,2]
[373216606,1752909049236,-927.65,0.00017703,2]
[373216608,1752909049245,-460.0,0.00017703,2]
[373216610,1752909049253,-460.0,0.00017703,2]
[373216612,1752909049260,-460.0,0.00017703,2]
[373216614,1752909049267,-460.0,0.00017703,2]
[373216616,1752909049278,-460.0,0.00017703,2]
[373216618,1752909049285,-460.0,0.00017703,2]
[373216620,1752909049292,-460.0,0.00017703,2]
[373216622,1752909049301,-460.0,0.00017703,2]
[373216624,1752909049311,-460.0,0.00017704,2]
[373216626,1752909049320,-460.0,0.00017704,2]
[373216628,1752909049330,-460.0,0.00017704,2]
[373216630,1752909049339,-460.0,0.00017704,2]
[373216632,1752909049349,-460.0,0.00017704,2]
[373216634,1752909049359,-460.0,0.00017704,2]
[373216636,1752909049369,-460.0,0.00017704,2]
[373216638,1752909049379,-460.0,0.00017704,2]
[373216640,1752909049389,-460.0,0.00017704,2]
[373216642,1752909049398,-650.9,0.00017704,2]
[373216644,1752909049407,-460.06,0.00017704,2]
[373216646,1752909049417,-460.0,0.00017705,2]
[373216648,1752909049426,-460.0,0.00017705,2]
[373216650,1752909049435,-1989.54,0.00017705,2]
[373216652,1752909049445,-654.7,0.00017705,2]
[373216654,1752909049455,-460.0,0.00017706,2]
[373216656,1752909049465,-460.0,0.00017706,2]
[373216658,1752909049475,-460.0,0.00017706,2]
[373216660,1752909049484,-460.0,0.00017706,2]
[373216662,1752909049493,-460.0,0.00017706,2]
[373216664,1752909049503,-460.0,0.00017706,2]
[373216666,1752909049512,-460.0,0.00017706,2]
[373216668,1752909049522,-460.0,0.00017706,2]
[373216670,1752909049531,-460.0,0.00017706,2]
[373216672,1752909049541,-460.0,0.00017706,2]
[373216674,1752909049550,-460.0,0.00017706,2]
[373216676,1752909049560,-460.0,0.00017706,2]
[373216678,1752909049569,-460.0,0.00017808,2]
[373216680,1752909049578,-460.0,0.00017808,2]
[373216682,1752909049587,-1181.12,0.00017808,2]
[373216684,1752909049597,-620.48,0.00017808,2]
[373216686,1752909049607,-460.0,0.00017808,2]
[373216688,1752909049616,-887.11,0.00017808,2]
[373216690,1752909049626,-160.0,0.00017891,2]
[373216692,1752909049636,-3601.77310808,0.000179,2]
[373216694,1752909049646,-460.0,0.00017974,2]
[373216696,1752909049656,-460.0,0.00017974,2]
[373216698,1752909049667,-1478.11,0.00017974,2]
[373216700,1752909049677,-2003.51,0.00017975,2]
[373216702,1752909049687,-522.16,0.00017975,2]
[373216704,1752909049697,-3782.99,0.00017975,2]
[373216706,1752909049706,-460.0,0.00017975,2]
[373216708,1752909049716,-1586.99,0.00017975,2]
[373216710,1752909049725,-460.0,0.00017975,2]
[373216712,1752909049735,-1246.53,0.00017975,2]
[373216714,1752909049745,-460.0,0.00017975,2]
[373216716,1752909049755,-460.0,0.00017975,2]
[373216718,1752909049765,-1792.22,0.00017975,2]
[373216720,1752909049774,-460.0,0.00017975,2]
[373216722,1752909049783,-488.5,0.00017975,2]
[373216724,1752909049799,-460.0,0.00017975,2]
[373216726,1752909049809,-460.0,0.00017976,2]
[373216728,1752909049818,-460.0,0.00017976,2]
[373216730,1752909049827,-589.1728239,0.00017976,2]
[373216732,1752909049838,-460.0,0.00017976,2]
[373216734,1752909049848,-460.0,0.00017976,2]
[373216736,1752909049857,-460.0,0.00017976,2]
[373216738,1752909049868,-460.0,0.00017976,2]
[373216740,1752909049877,-460.0,0.00017976,2]
[373216742,1752909049886,-460.0,0.00017976,2]
[373216744,1752909049896,-460.0,0.00017976,2]
[373216746,1752909049906,-460.0,0.00017976,2]
[373216748,1752909049915,-460.0,0.00017976,2]
[373216750,1752909049925,-460.0,0.00017976,2]
[373216752,1752909049935,-460.0,0.00017976,2]
[373216754,1752909049944,-460.0,0.00017976,2]
[373216756,1752909049954,-460.0,0.00017976,2]
[373216758,1752909049965,-460.0,0.00017976,2]
[373216760,1752909049975,-460.0,0.00017976,2]
[373216762,1752909049985,-460.0,0.00017976,2]
[373216764,1752909049994,-460.0,0.00017976,2]
[373216766,1752909050004,-205.52373918,0.00017976,2]
[373216768,1752909050013,-460.0,0.00017976,2]
[373216769,1752909050022,-562.14,0.00017976,2]
[373216772,1752909050033,-460.0,0.00017976,2]
[373216773,1752909050042,-460.0,0.00017977,2]
[373216775,1752909050051,-280.48582985,0.00017977,2]
[373216777,1752909050060,-460.0,0.00017977,2]
[373216779,1752909050070,-460.0,0.00017977,2]
[373216781,1752909050079,-460.0,0.00017977,2]
[373216783,1752909050089,-460.0,0.00017977,2]
[373216785,1752909050099,-460.0,0.00017977,2]
[373216787,1752909050108,-374.83558408,0.00017977,2]
[373216789,1752909050118,-460.0,0.00017977,2]
[373216791,1752909050127,-530.02248193,0.00017977,2]
[373216793,1752909050136,-460.0,0.00017977,2]
[373216795,1752909050146,-460.0,0.00017977,2]
[373216797,1752909050155,-460.0,0.00017977,2]
[373216799,1752909050164,-473.36,0.00017977,2]
[373216801,1752909050174,-1137.59,0.00017977,2]
[373216803,1752909050183,-460.0,0.00017977,2]
[373216805,1752909050194,-460.0,0.00017977,2]
[373216807,1752909050203,-460.0,0.00017977,2]
[373216819,1752909050302,-653.46,0.00017977,2]
[373216821,1752909050312,-927.65,0.00017977,2]
[373216823,1752909050322,-460.0,0.00017977,2]
[373216825,1752909050331,-460.0,0.00017977,2]
[373216827,1752909050341,-460.0,0.00017977,2]
[373216829,1752909050350,-460.0,0.00017977,2]
[373216831,1752909050361,-460.0,0.00017977,2]
[373216833,1752909050371,-460.0,0.00017977,2]
[373216835,1752909050381,-254.29528754,0.00017978,2]
[373216837,1752909050390,-460.0,0.00017978,2]
[373216839,1752909050400,-460.0,0.00017978,2]
[373216841,1752909050409,-460.0,0.00017978,2]
[373216843,1752909050420,-505.27191865,0.00017978,2]
[373216845,1752909050430,-460.0,0.00017978,2]
[373216847,1752909050439,-460.0,0.00017978,2]
[373216849,1752909050448,-650.9,0.00017978,2]
[373216851,1752909050459,-460.06,0.00017978,2]
[373216853,1752909050469,-460.0,0.00017979,2]
[373216855,1752909050479,-529.46552197,0.00017979,2]
[373216857,1752909050488,-1989.54,0.00017979,2]
[373216859,1752909050497,-654.7,0.00017979,2]
[373216861,1752909050507,-460.0,0.0001798,2]
[373216863,1752909050516,-460.0,0.0001798,2]
[373216865,1752909050526,-460.0,0.0001798,2]
[373216867,1752909050535,-155.03,0.0001798,2]
[373216869,1752909050545,-460.0,0.0001798,2]
[373216871,1752909050555,-460.0,0.0001798,2]
[373216873,1752909050566,-460.0,0.0001798,2]
[373216875,1752909050576,-460.0,0.0001798,2]
[373216877,1752909050586,-459.59842107,0.0001798,2]
[373216879,1752909050595,-503.61159332,0.00018021,2]
[373216881,1752909050605,-460.0,0.00018082,2]
[373216883,1752909050615,-1181.12,0.00018082,2]
[373216885,1752909050625,-620.48,0.00018082,2]
[373216887,1752909050635,-460.0,0.00018082,2]
[373216889,1752909050644,-887.11,0.00018082,2]
[373216891,1752909050654,-501.05062047,0.00018117,2]
[373216893,1752909050663,-557.68192938,0.00018117,2]
[373216895,1752909050674,-500.0,0.00018117,2]
[373216897,1752909050683,-500.0,0.00018117,2]
[373216899,1752909050693,-500.0,0.00018117,2]
[373216901,1752909050703,-500.0,0.00018117,2]
[373216903,1752909050712,-500.0,0.00018117,2]
[373216905,1752909050722,-500.0,0.00018117,2]
[373216907,1752909050732,-500.0,0.00018117,2]
[373216909,1752909050742,-500.0,0.00018117,2]
[373216911,1752909050752,-500.0,0.00018117,2]
[373216913,1752909050762,-500.0,0.00018125,2]
[373216915,1752909050771,-440.43305097,0.00018125,2]
[373216917,1752909050782,-420.0,0.00018141,2]
[373216919,1752909050792,-180.0,0.00018141,2]
[373216921,1752909050804,-420.0,0.00018141,2]
[373216923,1752909050813,-1680.0,0.00018143,2]
[373216925,1752909050823,-160.0,0.00018165,2]
[373216927,1752909050833,-215.67360783,0.00018165,2]
[373216929,1752909050843,-839.454303,0.00018165,2]
[373216931,1752909050853,-160.0,0.00018165,2]
[373216933,1752909050862,-214.52603969,0.00018165,2]
[373216935,1752909050872,-160.0,0.00018165,2]
[373216937,1752909050881,-476.34170116,0.00018165,2]
[373216939,1752909050891,-160.0,0.00018165,2]
[373216941,1752909050900,-12612.80205064,0.00018165,2]
[373216943,1752909050909,-525.83049785,0.00018165,2]
[373216944,1752909050918,-230.94145789,0.00018165,2]
[373216947,1752909050928,-160.0,0.00018165,2]
[373216948,1752909050937,-160.0,0.00018165,2]
[373216951,1752909050947,-3601.77310806,0.00018176,2]
[373216953,1752909050956,-1680.0,0.00018232,2]
[373216955,1752909050966,-460.0,0.00018248,2]
[373216957,1752909050976,-460.0,0.00018248,2]
[373216959,1752909050985,-1478.11,0.00018248,2]
[373216961,1752909050994,-2003.51,0.00018249,2]
[373216963,1752909051003,-522.16,0.00018249,2]
[373216965,1752909051012,-3782.99,0.00018249,2]
[373216966,1752909051022,-460.0,0.00018249,2]
[373216969,1752909051032,-1586.99,0.00018249,2]
[373216970,1752909051041,-460.0,0.00018249,2]
[373216972,1752909051050,-1246.53,0.00018249,2]
[373216974,1752909051060,-460.0,0.00018249,2]
[373216976,1752909051069,-460.0,0.00018249,2]
[373216978,1752909051078,-1792.22,0.00018249,2]
[373216979,1752909051088,-460.0,0.00018249,2]
[373216980,1752909051097,-488.5,0.00018249,2]
[373216981,1752909051107,-469.98334508,0.00018249,2]
[373216982,1752909051119,-460.0,0.0001825,2]
[373216983,1752909051128,-460.0,0.0001825,2]
[373216984,1752909051138,-460.0,0.0001825,2]
[373216985,1752909051148,-460.0,0.0001825,2]
[373216986,1752909051157,-460.0,0.0001825,2]
[373216987,1752909051166,-460.0,0.0001825,2]
[373216988,1752909051175,-460.0,0.0001825,2]
[373216989,1752909051185,-460.0,0.0001825,2]
[373216990,1752909051194,-460.0,0.0001825,2]
[373216991,1752909051204,-431.4586869,0.0001825,2]
[373216992,1752909051214,-460.0,0.0001825,2]
[373216993,1752909051223,-460.0,0.0001825,2]
[373216994,1752909051233,-460.0,0.0001825,2]
[373216995,1752909051242,-460.0,0.0001825,2]
[373216996,1752909051252,-460.0,0.0001825,2]
[373216997,1752909051261,-460.0,0.0001825,2]
[373216998,1752909051271,-422.66257374,0.0001825,2]
[373216999,1752909051281,-460.0,0.0001825,2]
[373217000,1752909051290,-562.14,0.0001825,2]
[373217001,1752909051300,-460.0,0.0001825,2]
[373217002,1752909051310,-460.0,0.00018251,2]
[373217003,1752909051319,-460.0,0.00018251,2]
[373217004,1752909051329,-460.0,0.00018251,2]
[373217005,1752909051339,-460.0,0.00018251,2]
[373217007,1752909051348,-460.0,0.00018251,2]
[373217008,1752909051357,-460.0,0.00018251,2]
[373217010,1752909051368,-460.0,0.00018251,2]
[373217012,1752909051378,-460.0,0.00018251,2]
[373217014,1752909051387,-473.36,0.00018251,2]
[373217016,1752909051396,-1137.59,0.00018251,2]
[373217018,1752909051406,-460.0,0.00018251,2]
[373217020,1752909051415,-460.0,0.00018251,2]
[373217022,1752909051425,-460.0,0.00018251,2]
[373217024,1752909051434,-653.46,0.00018251,2]
[373217026,1752909051444,-927.65,0.00018251,2]
[373217028,1752909051453,-460.0,0.00018251,2]
[373217030,1752909051463,-460.0,0.00018251,2]
[373217032,1752909051472,-460.0,0.00018251,2]
[373217034,1752909051482,-460.0,0.00018251,2]
[373217036,1752909051492,-169.23972503,0.00018251,2]
[373217038,1752909051501,-460.0,0.00018251,2]
[373217040,1752909051510,-460.0,0.00018252,2]
[373217042,1752909051519,-462.62533365,0.00018252,2]
[373217044,1752909051529,-460.0,0.00018252,2]
[373217046,1752909051538,-460.0,0.00018252,2]
[373217048,1752909051547,-460.0,0.00018252,2]
[373217050,1752909051557,-650.9,0.00018252,2]
[373217052,1752909051566,-460.06,0.00018252,2]
[373217054,1752909051576,-460.0,0.00018253,2]
[373217056,1752909051585,-1989.54,0.00018253,2]
[373217058,1752909051595,-654.7,0.00018253,2]
[373217060,1752909051605,-460.0,0.00018254,2]
[373217062,1752909051614,-460.0,0.00018254,2]
[373217064,1752909051623,-460.0,0.00018254,2]
[373217066,1752909051632,-285.24826816,0.00018254,2]
[373217068,1752909051642,-460.0,0.00018254,2]
[373217070,1752909051651,-800.0,0.00018293,2]
[373217072,1752909051661,-1181.12,0.00018356,2]
[373217074,1752909051671,-620.48,0.00018356,2]
[373217076,1752909051681,-460.0,0.00018356,2]
[373217078,1752909051690,-887.11,0.00018356,2]
[373217080,1752909051700,-151.0,0.000184,2]
[373217082,1752909051710,-260.0,0.00018439,2]
[373217084,1752909051720,-3601.77310806,0.00018452,2]
[373217086,1752909051730,-460.0,0.00018522,2]
[373217088,1752909051741,-460.0,0.00018522,2]
[373217090,1752909051751,-1478.11,0.00018522,2]
[373217092,1752909051760,-2003.51,0.00018523,2]
[373217094,1752909051770,-522.16,0.00018523,2]
[373217096,1752909051780,-3782.99,0.00018523,2]
[373217098,1752909051789,-460.0,0.00018523,2]
[373217100,1752909051803,-1586.99,0.00018523,2]
[373217102,1752909051812,-460.0,0.00018523,2]
[373217104,1752909051822,-1246.53,0.00018523,2]
[373217106,1752909051832,-460.0,0.00018523,2]
[373217108,1752909051842,-460.0,0.00018523,2]
[373217110,1752909051852,-1792.22,0.00018523,2]
[373217112,1752909051862,-460.0,0.00018523,2]
[373217114,1752909051873,-488.5,0.00018523,2]
[373217116,1752909051883,-400.18269116,0.00018524,2]
[373217118,1752909051894,-460.0,0.00018524,2]
[373217120,1752909051906,-460.0,0.00018524,2]
[373217122,1752909051915,-460.0,0.00018524,2]
[373217124,1752909051924,-519.94461096,0.00018524,2]
[373217126,1752909051934,-460.0,0.00018524,2]
[373217128,1752909051943,-541.70417982,0.00018524,2]
[373217130,1752909051953,-460.0,0.00018524,2]
[373217132,1752909051962,-460.0,0.00018524,2]
[373217134,1752909051971,-460.0,0.00018524,2]
[373217136,1752909051980,-460.0,0.00018524,2]
[373217138,1752909051990,-460.0,0.00018524,2]
[373217150,1752909052088,-460.0,0.00018524,2]
[373217152,1752909052098,-460.0,0.00018524,2]
[373217154,1752909052108,-562.14,0.00018524,2]
[373217156,1752909052117,-460.0,0.00018524,2]
[373217158,1752909052126,-365.29279224,0.00018525,2]
[373217160,1752909052136,-565.34227026,0.00018525,2]
[373217162,1752909052145,-460.0,0.00018525,2]
[373217164,1752909052154,-460.0,0.00018525,2]
[373217166,1752909052164,-460.0,0.00018525,2]
[373217168,1752909052174,-473.36,0.00018525,2]
[373217170,1752909052183,-1137.59,0.00018525,2]
[373217172,1752909052193,-460.0,0.00018525,2]
[373217174,1752909052202,-460.0,0.00018525,2]
[373217176,1752909052212,-460.0,0.00018525,2]
[373217178,1752909052221,-653.46,0.00018525,2]
[373217180,1752909052231,-927.65,0.00018525,2]
[373217182,1752909052241,-460.0,0.00018525,2]
[373217184,1752909052250,-460.0,0.00018525,2]
[373217186,1752909052260,-460.0,0.00018525,2]
[373217188,1752909052269,-460.0,0.00018525,2]
[373217190,1752909052278,-460.0,0.00018525,2]
[373217192,1752909052287,-460.0,0.00018526,2]
[373217194,1752909052297,-460.0,0.00018526,2]
[373217196,1752909052306,-443.36229894,0.00018526,2]
[373217197,1752909052315,-460.0,0.00018526,2]
[373217199,1752909052325,-650.9,0.00018526,2]
[373217202,1752909052335,-460.06,0.00018526,2]
[373217203,1752909052345,-460.0,0.00018527,2]
[373217205,1752909052354,-1989.54,0.00018527,2]
[373217208,1752909052367,-654.7,0.00018527,2]
[373217209,1752909052377,-405.22383722,0.00018528,2]
[373217211,1752909052387,-460.0,0.00018528,2]
[373217213,1752909052397,-460.0,0.00018528,2]
[373217215,1752909052407,-460.0,0.00018528,2]
[373217217,1752909052417,-1181.12,0.0001863,2]
[373217219,1752909052427,-620.48,0.0001863,2]
[373217222,1752909052436,-460.0,0.0001863,2]
[373217224,1752909052446,-887.11,0.0001863,2]
[373217225,1752909052455,-1000.0,0.00018665,2]
[373217227,1752909052466,-1000.0,0.00018665,2]
[373217230,1752909052476,-1001.11006549,0.00018665,2]
[373217231,1752909052486,-1000.0,0.00018665,2]
[373217234,1752909052497,-1001.03340429,0.00018665,2]
[373217235,1752909052506,-493.83870128,0.00018665,2]
[373217237,1752909052516,-1000.0,0.00018665,2]
[373217239,1752909052525,-1001.44691967,0.00018665,2]
[373217241,1752909052534,-1000.0,0.00018665,2]
[373217244,1752909052544,-151.0,0.000187,2]
[373217245,1752909052553,-3601.77310806,0.00018728,2]
[373217247,1752909052563,-460.0,0.00018796,2]
[373217249,1752909052573,-460.0,0.00018796,2]
[373217251,1752909052583,-1478.11,0.00018796,2]
[373217254,1752909052592,-2003.51,0.00018797,2]
[373217255,1752909052601,-522.16,0.00018797,2]
[373217258,1752909052612,-3782.99,0.00018797,2]
[373217260,1752909052621,-460.0,0.00018797,2]
[373217262,1752909052631,-1586.99,0.00018797,2]
[373217263,1752909052640,-460.0,0.00018797,2]
[373217265,1752909052650,-1246.53,0.00018797,2]
[373217267,1752909052660,-460.0,0.00018797,2]
[373217269,1752909052670,-460.0,0.00018797,2]
[373217271,1752909052681,-1792.22,0.00018797,2]
[373217273,1752909052691,-460.0,0.00018797,2]
[373217276,1752909052701,-488.5,0.00018797,2]
[373217278,1752909052710,-460.0,0.00018798,2]
[373217279,1752909052720,-460.0,0.00018798,2]
[373217281,1752909052729,-460.0,0.00018798,2]
[373217283,1752909052738,-460.0,0.00018798,2]
[373217285,1752909052748,-460.0,0.00018798,2]
[373217287,1752909052757,-460.0,0.00018798,2]